[Event "Late-Titled-Tuesday-Blitz-September-12-2023"]
[Site "Chess.com"]
[Date "2023.09.12"]
[Round "2"]
[White "adiosabu"]
[Black "lachesisQ"]
[Result "1-0"]
[WhiteElo "2590"]
[BlackElo "3081"]
[TimeControl "180+1"]
[EndTime "14:17:59 PDT"]
[Termination "adiosabu won by resignation"]

1. e4 {[%clk 0:03:00.9]} 1... c5 {[%clk 0:03:00]} 2. Nf3 {[%clk 0:02:59.8]} 2...
d6 {[%clk 0:03:00.9]} 3. d4 {[%clk 0:02:58.1]} 3... cxd4 {[%clk 0:03:01.8]} 4.
Qxd4 {[%clk 0:02:58.3]} 4... a6 {[%clk 0:03:00.5]} 5. c4 {[%clk 0:02:55.4]} 5...
Nc6 {[%clk 0:03:00.3]} 6. Qe3 {[%clk 0:02:55.4]} 6... g6 {[%clk 0:03:00.8]} 7.
Be2 {[%clk 0:02:53.6]} 7... Nf6 {[%clk 0:02:58.3]} 8. h3 {[%clk 0:02:52.4]} 8...
Bg7 {[%clk 0:02:58.4]} 9. O-O {[%clk 0:02:52.6]} 9... O-O {[%clk 0:02:58.1]} 10.
Rd1 {[%clk 0:02:52.5]} 10... Nd7 {[%clk 0:02:54]} 11. Nc3 {[%clk 0:02:48.1]}
11... Nc5 {[%clk 0:02:54]} 12. Bd2 {[%clk 0:02:38.6]} 12... f5 {[%clk
0:02:52.6]} 13. exf5 {[%clk 0:02:32.6]} 13... gxf5 {[%clk 0:02:47.4]} 14. Be1
{[%clk 0:02:30.1]} 14... f4 {[%clk 0:02:20.2]} 15. Qd2 {[%clk 0:02:27]} 15...
Qe8 {[%clk 0:02:20.3]} 16. Nd5 {[%clk 0:02:23.9]} 16... Qf7 {[%clk 0:02:18.8]}
17. Rac1 {[%clk 0:02:09]} 17... h6 {[%clk 0:02:00.8]} 18. b4 {[%clk 0:02:05.6]}
18... Ne4 {[%clk 0:02:00.9]} 19. Qc2 {[%clk 0:02:05.7]} 19... Ng5 {[%clk
0:01:58.9]} 20. c5 {[%clk 0:01:46.8]} 20... Bf5 {[%clk 0:01:54.7]} 21. Qa4
{[%clk 0:01:33.4]} 21... Nxf3+ {[%clk 0:01:51.2]} 22. Bxf3 {[%clk 0:01:32.7]}
22... Ne5 {[%clk 0:01:51.2]} 23. Qb3 {[%clk 0:01:09]} 23... e6 {[%clk
0:01:51.3]} 24. Nxf4 {[%clk 0:01:02.2]} 24... Nxf3+ {[%clk 0:01:49.2]} 25. Qxf3
{[%clk 0:01:01.6]} 25... d5 {[%clk 0:01:49.8]} 26. Nh5 {[%clk 0:00:55.9]} 26...
Bb2 {[%clk 0:01:49]} 27. Bc3 {[%clk 0:00:51.5]} 27... Bxc1 {[%clk 0:01:36.5]}
28. Nf6+ {[%clk 0:00:48.2]} 28... Qxf6 {[%clk 0:01:07.7]} 29. Bxf6 {[%clk
0:00:47.8]} 29... Rxf6 {[%clk 0:01:08.6]} 30. Rxc1 {[%clk 0:00:47.6]} 30... Raf8
{[%clk 0:01:09.5]} 31. Qe3 {[%clk 0:00:43.1]} 31... Rg6 {[%clk 0:01:07.8]} 32.
Kh2 {[%clk 0:00:42.4]} 32... Kh7 {[%clk 0:01:07.5]} 33. f3 {[%clk 0:00:42.2]}
33... Rg7 {[%clk 0:00:59.5]} 34. Rf1 {[%clk 0:00:35]} 34... Re7 {[%clk 0:00:52]}
35. g4 {[%clk 0:00:34.6]} 35... Bg6 {[%clk 0:00:52.1]} 36. Qe5 {[%clk
0:00:34.8]} 36... Rd8 {[%clk 0:00:49.8]} 37. Rd1 {[%clk 0:00:33.9]} 37... Rf8
{[%clk 0:00:46.8]} 38. Kg3 {[%clk 0:00:34.2]} 38... Ref7 {[%clk 0:00:46.2]} 39.
Rf1 {[%clk 0:00:34.2]} 39... Re8 {[%clk 0:00:44.9]} 40. f4 {[%clk 0:00:33.9]}
40... Rd7 {[%clk 0:00:45.2]} 41. Rd1 {[%clk 0:00:32.5]} 41... Ree7 {[%clk
0:00:42.7]} 42. Rd4 {[%clk 0:00:31.8]} 42... Bc2 {[%clk 0:00:41.6]} 43. h4
{[%clk 0:00:32]} 43... Bg6 {[%clk 0:00:39.2]} 44. h5 {[%clk 0:00:32.3]} 44...
Bc2 {[%clk 0:00:39.3]} 45. g5 {[%clk 0:00:33]} 45... Bf5 {[%clk 0:00:35.5]} 46.
g6+ {[%clk 0:00:32.8]} 46... Kg8 {[%clk 0:00:36.1]} 47. a4 {[%clk 0:00:32.8]}
47... Re8 {[%clk 0:00:32.5]} 48. b5 {[%clk 0:00:31.8]} 48... axb5 {[%clk
0:00:29.2]} 49. axb5 {[%clk 0:00:31.6]} 49... Rc8 {[%clk 0:00:29.9]} 50. Ra4
{[%clk 0:00:29.1]} 50... Rdc7 {[%clk 0:00:29.4]} 51. c6 {[%clk 0:00:28.1]} 51...
bxc6 {[%clk 0:00:23.4]} 52. b6 {[%clk 0:00:28]} 52... Rb7 {[%clk 0:00:21.7]} 53.
Ra7 {[%clk 0:00:27.9]} 53... Rcb8 {[%clk 0:00:22.1]} 54. Rxb7 {[%clk 0:00:27.5]}
54... Rxb7 {[%clk 0:00:23]} 55. Qd6 {[%clk 0:00:26.7]} 55... Kg7 {[%clk
0:00:04.7]} 56. Qxc6 {[%clk 0:00:26.7]} 1-0

[Event "Late-Titled-Tuesday-Blitz-September-12-2023"]
[Site "Chess.com"]
[Date "2023.09.12"]
[Round "2"]
[White "kuli4ik"]
[Black "ural58"]
[Result "1-0"]
[WhiteElo "2946"]
[BlackElo "2538"]
[TimeControl "180+1"]
[EndTime "14:18:02 PDT"]
[Termination "kuli4ik won on time"]

1. Nf3 {[%clk 0:02:59.9]} 1... d5 {[%clk 0:02:54.6]} 2. e3 {[%clk 0:02:57.3]}
2... Nc6 {[%clk 0:02:49.1]} 3. d4 {[%clk 0:02:58.2]} 3... Bg4 {[%clk 0:02:46.7]}
4. c4 {[%clk 0:02:57]} 4... e6 {[%clk 0:02:46.7]} 5. Qb3 {[%clk 0:02:55.4]} 5...
Rb8 {[%clk 0:02:45.6]} 6. Nc3 {[%clk 0:02:49.2]} 6... Bxf3 {[%clk 0:02:45.1]} 7.
gxf3 {[%clk 0:02:49]} 7... Nf6 {[%clk 0:02:32.9]} 8. Bd2 {[%clk 0:02:47.4]} 8...
a6 {[%clk 0:02:30.5]} 9. Bg2 {[%clk 0:02:38.6]} 9... dxc4 {[%clk 0:02:11.7]} 10.
Qxc4 {[%clk 0:02:32.8]} 10... Be7 {[%clk 0:02:04.1]} 11. f4 {[%clk 0:02:31.9]}
11... O-O {[%clk 0:01:59.2]} 12. O-O {[%clk 0:02:29.8]} 12... Nb4 {[%clk
0:01:54.3]} 13. Rfd1 {[%clk 0:02:27.6]} 13... b5 {[%clk 0:01:51.5]} 14. Qe2
{[%clk 0:02:26.7]} 14... Qc8 {[%clk 0:01:47.6]} 15. Rac1 {[%clk 0:02:20]} 15...
Nbd5 {[%clk 0:01:41.9]} 16. Nxd5 {[%clk 0:02:13.5]} 16... Nxd5 {[%clk 0:01:38]}
17. f5 {[%clk 0:02:13.1]} 17... Nb6 {[%clk 0:01:34]} 18. fxe6 {[%clk 0:02:11.1]}
18... Qxe6 {[%clk 0:01:33.6]} 19. Rxc7 {[%clk 0:02:07.2]} 19... Bd8 {[%clk
0:01:24]} 20. Rc6 {[%clk 0:01:59.3]} 20... Qxa2 {[%clk 0:01:23.6]} 21. Bb4
{[%clk 0:01:55.9]} 21... Re8 {[%clk 0:01:23.4]} 22. d5 {[%clk 0:01:47.9]} 22...
Nc4 {[%clk 0:01:13.3]} 23. d6 {[%clk 0:01:38.2]} 23... Ba5 {[%clk 0:01:06.1]}
24. d7 {[%clk 0:01:35.4]} 24... Bxb4 {[%clk 0:01:02.9]} 25. dxe8=Q+ {[%clk
0:01:33.2]} 25... Rxe8 {[%clk 0:01:03.8]} 26. Bd5 {[%clk 0:01:24.8]} 26... Rf8
{[%clk 0:00:44.7]} 27. Bxc4 {[%clk 0:01:22.1]} 27... bxc4 {[%clk 0:00:44.1]} 28.
Qxc4 {[%clk 0:01:22.1]} 28... Qxc4 {[%clk 0:00:43.9]} 29. Rxc4 {[%clk
0:01:21.6]} 29... a5 {[%clk 0:00:44.5]} 30. Rcd4 {[%clk 0:01:20.6]} 30... Be7
{[%clk 0:00:38.1]} 31. Rd7 {[%clk 0:01:17.3]} 31... Bf6 {[%clk 0:00:37.7]} 32.
b3 {[%clk 0:01:17.4]} 32... g6 {[%clk 0:00:35.8]} 33. Ra7 {[%clk 0:01:16]} 33...
Bc3 {[%clk 0:00:31.6]} 34. Rc1 {[%clk 0:01:14]} 34... Bb4 {[%clk 0:00:31.5]} 35.
Rac7 {[%clk 0:01:14.1]} 35... Kg7 {[%clk 0:00:11.4]} 36. Rc8 {[%clk 0:01:13.6]}
36... Rxc8 {[%clk 0:00:11.7]} 37. Rxc8 {[%clk 0:01:14.1]} 37... h5 {[%clk
0:00:11.2]} 38. Kg2 {[%clk 0:01:13.3]} 38... g5 {[%clk 0:00:11.4]} 39. h3 {[%clk
0:01:12.3]} 39... f6 {[%clk 0:00:11.7]} 40. Kf3 {[%clk 0:01:01.3]} 40... Kg6
{[%clk 0:00:11.9]} 41. Rb8 {[%clk 0:01:01.4]} 41... f5 {[%clk 0:00:10.6]} 42.
Rb6+ {[%clk 0:00:55.5]} 42... Kf7 {[%clk 0:00:10.5]} 43. h4 {[%clk 0:00:49.7]}
43... g4+ {[%clk 0:00:05.1]} 44. Kf4 {[%clk 0:00:48.8]} 44... Be1 {[%clk
0:00:05.4]} 45. Rb5 {[%clk 0:00:43.6]} 45... Bxf2 {[%clk 0:00:03.4]} 46. Rxf5+
{[%clk 0:00:41.2]} 46... Kg6 {[%clk 0:00:04]} 47. Rg5+ {[%clk 0:00:34.8]} 47...
Kh6 {[%clk 0:00:04.1]} 48. Rxa5 {[%clk 0:00:35.3]} 48... Bxh4 {[%clk 0:00:04.2]}
49. Ra6+ {[%clk 0:00:35.3]} 49... Kg7 {[%clk 0:00:04.4]} 50. b4 {[%clk
0:00:31.9]} 50... Bf2 {[%clk 0:00:03.7]} 51. b5 {[%clk 0:00:29.7]} 51... g3
{[%clk 0:00:04]} 52. Kf3 {[%clk 0:00:29.5]} 52... h4 {[%clk 0:00:04.1]} 53. Ra2
{[%clk 0:00:26.4]} 1-0

[Event "Late-Titled-Tuesday-Blitz-September-12-2023"]
[Site "Chess.com"]
[Date "2023.09.12"]
[Round "2"]
[White "Zampronha1971"]
[Black "santosalberto1987"]
[Result "0-1"]
[WhiteElo "2315"]
[BlackElo "2531"]
[TimeControl "180+1"]
[EndTime "14:18:04 PDT"]
[Termination "santosalberto1987 won by resignation"]

1. e4 {[%clk 0:03:00.9]} 1... e6 {[%clk 0:02:52.8]} 2. d4 {[%clk 0:03:00.2]}
2... d5 {[%clk 0:02:53]} 3. Nc3 {[%clk 0:03:01]} 3... Nf6 {[%clk 0:02:52]} 4. e5
{[%clk 0:03:01.4]} 4... Nfd7 {[%clk 0:02:52.2]} 5. f4 {[%clk 0:03:02.1]} 5... c5
{[%clk 0:02:52.8]} 6. Nf3 {[%clk 0:03:02.6]} 6... Nc6 {[%clk 0:02:53.4]} 7. Be3
{[%clk 0:03:03.1]} 7... Qb6 {[%clk 0:02:53.8]} 8. Na4 {[%clk 0:03:02.1]} 8...
Qa5+ {[%clk 0:02:54]} 9. c3 {[%clk 0:03:02.5]} 9... b6 {[%clk 0:02:54.4]} 10.
Kf2 {[%clk 0:02:37.2]} 10... Ba6 {[%clk 0:02:51.3]} 11. Bxa6 {[%clk 0:02:34.7]}
11... Qxa6 {[%clk 0:02:51.1]} 12. Re1 {[%clk 0:02:27.5]} 12... Be7 {[%clk
0:02:41.9]} 13. Kg1 {[%clk 0:02:27]} 13... O-O {[%clk 0:02:40.5]} 14. a3 {[%clk
0:02:14.5]} 14... c4 {[%clk 0:02:37.9]} 15. b4 {[%clk 0:02:13.1]} 15... cxb3
{[%clk 0:02:37.8]} 16. Qxb3 {[%clk 0:02:13.4]} 16... Na5 {[%clk 0:02:38]} 17.
Qd1 {[%clk 0:02:11.9]} 17... Rac8 {[%clk 0:02:37]} 18. Bd2 {[%clk 0:02:07.4]}
18... Nc4 {[%clk 0:02:35.3]} 19. Qb3 {[%clk 0:02:00.5]} 19... b5 {[%clk
0:02:06.6]} 20. Nb2 {[%clk 0:01:58.9]} 20... Nxb2 {[%clk 0:02:06.8]} 21. Qxb2
{[%clk 0:01:59.1]} 21... Nb6 {[%clk 0:02:07.4]} 22. Rec1 {[%clk 0:01:55.3]}
22... Na4 {[%clk 0:01:55.3]} 23. Qb3 {[%clk 0:01:53.7]} 23... Qc6 {[%clk
0:01:51.3]} 24. Be1 {[%clk 0:01:53]} 24... a6 {[%clk 0:01:50.1]} 25. Qd1 {[%clk
0:01:39]} 25... Nb2 {[%clk 0:01:45.8]} 26. Qe2 {[%clk 0:01:37.4]} 26... Nc4
{[%clk 0:01:46]} 27. Ra2 {[%clk 0:01:33.8]} 27... a5 {[%clk 0:01:18.9]} 28. Rca1
{[%clk 0:01:33.8]} 28... a4 {[%clk 0:01:18.1]} 29. Nd2 {[%clk 0:01:31.1]} 29...
Nxd2 {[%clk 0:01:12.7]} 30. Bxd2 {[%clk 0:01:30.5]} 30... Qc4 {[%clk 0:01:12.9]}
31. Qxc4 {[%clk 0:01:29.8]} 31... bxc4 {[%clk 0:01:07.2]} 32. Kf1 {[%clk
0:01:25.6]} 32... Rb8 {[%clk 0:01:07.2]} 33. Ke2 {[%clk 0:01:25.6]} 33... Rb3
{[%clk 0:01:07]} 34. Kd1 {[%clk 0:01:25.4]} 34... Rfb8 {[%clk 0:01:07]} 35. Kc2
{[%clk 0:01:25.4]} 35... f6 {[%clk 0:01:04.4]} 36. Bc1 {[%clk 0:01:17.6]} 36...
fxe5 {[%clk 0:01:03.3]} 37. fxe5 {[%clk 0:01:10.7]} 37... Bd8 {[%clk 0:00:57.9]}
38. Bd2 {[%clk 0:01:08]} 38... Ba5 {[%clk 0:00:57.7]} 39. Rf1 {[%clk 0:01:03.4]}
39... Rf8 {[%clk 0:00:51.1]} 40. Rxf8+ {[%clk 0:01:02.5]} 40... Kxf8 {[%clk
0:00:52]} 41. Ra1 {[%clk 0:00:47.6]} 41... Kf7 {[%clk 0:00:51.8]} 42. Be1 {[%clk
0:00:28.1]} 42... Kg6 {[%clk 0:00:50.8]} 43. Bd2 {[%clk 0:00:28.5]} 43... Bd8
{[%clk 0:00:48]} 44. Bc1 {[%clk 0:00:22.9]} 44... Be7 {[%clk 0:00:48]} 45. Bb2
{[%clk 0:00:22.2]} 45... h5 {[%clk 0:00:21]} 46. h3 {[%clk 0:00:19.2]} 46... Rb8
{[%clk 0:00:20]} 47. Rf1 {[%clk 0:00:17.8]} 47... Rf8 {[%clk 0:00:20.3]} 48.
Rxf8 {[%clk 0:00:17.1]} 48... Bxf8 {[%clk 0:00:21.2]} 49. Kd1 {[%clk 0:00:17.5]}
49... Kf5 {[%clk 0:00:21.4]} 50. Ke2 {[%clk 0:00:17.4]} 50... Ke4 {[%clk
0:00:21.8]} 51. Bc1 {[%clk 0:00:17.8]} 51... Be7 {[%clk 0:00:21.5]} 52. Bb2
{[%clk 0:00:17]} 52... Bg5 {[%clk 0:00:20.6]} 53. g3 {[%clk 0:00:16.8]} 53...
Bh6 {[%clk 0:00:20.4]} 54. h4 {[%clk 0:00:16.9]} 54... g6 {[%clk 0:00:20]} 55.
Ba1 {[%clk 0:00:16.3]} 55... Bc1 {[%clk 0:00:20]} 56. Kd1 {[%clk 0:00:09.5]}
56... Bxa3 {[%clk 0:00:20.2]} 57. Bb2 {[%clk 0:00:10.4]} 57... Bxb2 {[%clk
0:00:20.2]} 0-1

[Event "Late-Titled-Tuesday-Blitz-September-12-2023"]
[Site "Chess.com"]
[Date "2023.09.12"]
[Round "2"]
[White "artooon"]
[Black "Valio_M1948"]
[Result "1-0"]
[WhiteElo "3044"]
[BlackElo "2553"]
[TimeControl "180+1"]
[EndTime "14:18:08 PDT"]
[Termination "artooon won on time"]

1. e4 {[%clk 0:03:00.9]} 1... e5 {[%clk 0:02:58.5]} 2. Nf3 {[%clk 0:03:01.2]}
2... d5 {[%clk 0:02:58.1]} 3. exd5 {[%clk 0:03:00.7]} 3... e4 {[%clk 0:02:58.3]}
4. Qe2 {[%clk 0:03:01]} 4... Nf6 {[%clk 0:02:57.9]} 5. Nc3 {[%clk 0:03:01.7]}
5... Be7 {[%clk 0:02:57.9]} 6. Nxe4 {[%clk 0:03:01.8]} 6... O-O {[%clk
0:02:58.6]} 7. d3 {[%clk 0:02:55.5]} 7... Qxd5 {[%clk 0:02:57.5]} 8. Nc3 {[%clk
0:02:48.9]} 8... Bb4 {[%clk 0:02:56.6]} 9. Be3 {[%clk 0:02:41.9]} 9... Qa5
{[%clk 0:02:46.8]} 10. Qd2 {[%clk 0:02:19.4]} 10... Nd5 {[%clk 0:02:42.4]} 11.
a3 {[%clk 0:02:11.7]} 11... Nxc3 {[%clk 0:02:38.2]} 12. Rc1 {[%clk 0:02:12.3]}
12... Bxa3 {[%clk 0:02:03.1]} 13. bxa3 {[%clk 0:02:08.8]} 13... Qxa3 {[%clk
0:02:02.9]} 14. g3 {[%clk 0:01:55.4]} 14... Bg4 {[%clk 0:01:41.1]} 15. Bg2
{[%clk 0:01:53.5]} 15... Nc6 {[%clk 0:01:41.1]} 16. O-O {[%clk 0:01:52.6]} 16...
Rfe8 {[%clk 0:01:38.2]} 17. Rfe1 {[%clk 0:01:43]} 17... Rad8 {[%clk 0:01:29.6]}
18. Ra1 {[%clk 0:01:26.5]} 18... Qb2 {[%clk 0:01:20.6]} 19. h3 {[%clk
0:01:24.5]} 19... Bf5 {[%clk 0:01:10.7]} 20. Nh4 {[%clk 0:01:12.7]} 20... Be6
{[%clk 0:01:04.4]} 21. Bxa7 {[%clk 0:00:48.7]} 21... Ra8 {[%clk 0:00:47.7]} 22.
Bxc6 {[%clk 0:00:44.4]} 22... bxc6 {[%clk 0:00:48.6]} 23. Ng2 {[%clk 0:00:29.2]}
23... Bxh3 {[%clk 0:00:42.6]} 24. Ne3 {[%clk 0:00:27.2]} 24... Be6 {[%clk
0:00:38]} 25. Kh2 {[%clk 0:00:24.3]} 25... h6 {[%clk 0:00:37.2]} 26. Bd4 {[%clk
0:00:23.4]} 26... Rxa1 {[%clk 0:00:35.9]} 27. Bxc3 {[%clk 0:00:23.8]} 27... Rxe1
{[%clk 0:00:17.9]} 28. Bxb2 {[%clk 0:00:24]} 28... Rb1 {[%clk 0:00:18.8]} 29.
Qc3 {[%clk 0:00:22.8]} 29... f6 {[%clk 0:00:19.5]} 30. Qxc6 {[%clk 0:00:22.7]}
30... Bf7 {[%clk 0:00:18.7]} 31. Bd4 {[%clk 0:00:21]} 31... Re7 {[%clk
0:00:17.9]} 32. Bc5 {[%clk 0:00:19.9]} 32... Re6 {[%clk 0:00:18]} 33. Qxc7
{[%clk 0:00:19.6]} 33... Rb2 {[%clk 0:00:18.3]} 34. Bd4 {[%clk 0:00:18.9]} 34...
Rb5 {[%clk 0:00:18]} 35. Qd7 {[%clk 0:00:15.5]} 35... Rh5+ {[%clk 0:00:17.3]}
36. Kg1 {[%clk 0:00:16]} 36... Re8 {[%clk 0:00:15.7]} 37. Qg4 {[%clk 0:00:15.7]}
37... Rg5 {[%clk 0:00:15.4]} 38. Qd7 {[%clk 0:00:16.4]} 38... Re6 {[%clk
0:00:14.5]} 39. c4 {[%clk 0:00:16.3]} 39... h5 {[%clk 0:00:13.9]} 40. c5 {[%clk
0:00:13.8]} 40... h4 {[%clk 0:00:14.4]} 41. g4 {[%clk 0:00:14.4]} 41... Re8
{[%clk 0:00:09.3]} 42. c6 {[%clk 0:00:14.3]} 42... Ra5 {[%clk 0:00:04.6]} 43. c7
{[%clk 0:00:13.8]} 43... Raa8 {[%clk 0:00:03.4]} 44. Kh2 {[%clk 0:00:12.1]}
44... Be6 {[%clk 0:00:03.6]} 45. Qd6 {[%clk 0:00:12]} 45... Kf7 {[%clk
0:00:02.6]} 46. Nf5 {[%clk 0:00:10.3]} 46... g6 {[%clk 0:00:01.4]} 47. Ne3
{[%clk 0:00:10.3]} 47... Re7 {[%clk 0:00:01.4]} 48. Qf4 {[%clk 0:00:10.6]} 1-0

[Event "Late-Titled-Tuesday-Blitz-September-12-2023"]
[Site "Chess.com"]
[Date "2023.09.12"]
[Round "2"]
[White "Vaibhavraut99"]
[Black "HansOnTwitch"]
[Result "0-1"]
[WhiteElo "2566"]
[BlackElo "3083"]
[TimeControl "180+1"]
[EndTime "14:18:10 PDT"]
[Termination "HansOnTwitch won by resignation"]

1. e4 {[%clk 0:03:00.4]} 1... c5 {[%clk 0:02:59.1]} 2. Nf3 {[%clk 0:02:59.4]}
2... Nc6 {[%clk 0:02:59]} 3. Bb5 {[%clk 0:02:59.2]} 3... g6 {[%clk 0:02:58.6]}
4. O-O {[%clk 0:02:59.1]} 4... Bg7 {[%clk 0:02:58.7]} 5. Bxc6 {[%clk 0:02:57.9]}
5... bxc6 {[%clk 0:02:58.5]} 6. d3 {[%clk 0:02:58.3]} 6... d6 {[%clk 0:02:56.3]}
7. Nc3 {[%clk 0:02:52.8]} 7... e5 {[%clk 0:02:55.4]} 8. h3 {[%clk 0:02:47.3]}
8... Ne7 {[%clk 0:02:48.9]} 9. Nh2 {[%clk 0:02:44.7]} 9... O-O {[%clk
0:02:47.9]} 10. f4 {[%clk 0:02:44.8]} 10... f5 {[%clk 0:02:48.5]} 11. fxe5
{[%clk 0:02:42.8]} 11... dxe5 {[%clk 0:02:41]} 12. exf5 {[%clk 0:02:38.9]} 12...
gxf5 {[%clk 0:02:38.5]} 13. Bg5 {[%clk 0:02:27.4]} 13... h6 {[%clk 0:02:32.4]}
14. Bh4 {[%clk 0:02:22.4]} 14... Qd6 {[%clk 0:02:32]} 15. Bxe7 {[%clk
0:01:55.6]} 15... Qxe7 {[%clk 0:02:29.1]} 16. Qe2 {[%clk 0:01:46.5]} 16... Rb8
{[%clk 0:02:27.4]} 17. Rab1 {[%clk 0:01:44.2]} 17... Qd6 {[%clk 0:02:24]} 18.
Nf3 {[%clk 0:01:42.7]} 18... Bd7 {[%clk 0:02:18.3]} 19. Nd2 {[%clk 0:01:41.1]}
19... Be6 {[%clk 0:02:16]} 20. Kh1 {[%clk 0:01:38.9]} 20... Rbd8 {[%clk
0:02:12.2]} 21. Rbe1 {[%clk 0:01:33.9]} 21... Rde8 {[%clk 0:01:57.5]} 22. Nf3
{[%clk 0:01:13.6]} 22... Bc8 {[%clk 0:01:51.4]} 23. Nh4 {[%clk 0:01:00.5]} 23...
Kh7 {[%clk 0:01:48.6]} 24. Qh5 {[%clk 0:00:57.7]} 24... Qe6 {[%clk 0:01:38.3]}
25. Ne2 {[%clk 0:00:54.5]} 25... Qf7 {[%clk 0:01:35.1]} 26. Qxf7 {[%clk
0:00:42.8]} 26... Rxf7 {[%clk 0:01:34.7]} 27. Ng3 {[%clk 0:00:38.5]} 27... Ref8
{[%clk 0:01:35]} 28. Nf3 {[%clk 0:00:38.4]} 28... Re7 {[%clk 0:01:15]} 29. Nh4
{[%clk 0:00:37.1]} 29... Ref7 {[%clk 0:00:57.4]} 30. Nf3 {[%clk 0:00:37.3]}
30... e4 {[%clk 0:00:54.9]} 31. dxe4 {[%clk 0:00:35.8]} 31... f4 {[%clk
0:00:50.2]} 32. Nf5 {[%clk 0:00:26.5]} 32... Bxf5 {[%clk 0:00:42.8]} 33. exf5
{[%clk 0:00:27.4]} 33... Rxf5 {[%clk 0:00:40.3]} 34. Re6 {[%clk 0:00:26]} 34...
Bxb2 {[%clk 0:00:36.7]} 35. Rxc6 {[%clk 0:00:25.3]} 35... R8f6 {[%clk
0:00:36.7]} 36. Rc7+ {[%clk 0:00:23.1]} 36... Rf7 {[%clk 0:00:36.8]} 37. Rc6
{[%clk 0:00:23.1]} 37... Rd5 {[%clk 0:00:31.9]} 38. Re1 {[%clk 0:00:20.8]} 38...
Bg7 {[%clk 0:00:29.4]} 39. Rce6 {[%clk 0:00:17.7]} 39... c4 {[%clk 0:00:21.9]}
40. Re7 {[%clk 0:00:17.2]} 40... Rd7 {[%clk 0:00:21.4]} 41. R7e4 {[%clk
0:00:17]} 41... Rc7 {[%clk 0:00:18.3]} 42. Rd1 {[%clk 0:00:09.1]} 42... c3
{[%clk 0:00:18.5]} 43. Rd3 {[%clk 0:00:09.2]} 43... Rfd7 {[%clk 0:00:13.2]} 44.
Rxd7 {[%clk 0:00:06.2]} 44... Rxd7 {[%clk 0:00:14.1]} 45. Rxf4 {[%clk
0:00:05.8]} 45... Rd1+ {[%clk 0:00:13.9]} 46. Kh2 {[%clk 0:00:06.5]} 46... Rc1
{[%clk 0:00:14.3]} 47. Rc4 {[%clk 0:00:06.3]} 47... Rxc2 {[%clk 0:00:14.4]} 48.
Kg3 {[%clk 0:00:06.3]} 48... Rxa2 {[%clk 0:00:14]} 49. Rc7 {[%clk 0:00:05.7]}
49... a5 {[%clk 0:00:12.9]} 50. Nh4 {[%clk 0:00:05.1]} 50... Kg8 {[%clk
0:00:12.3]} 51. Kf3 {[%clk 0:00:03.9]} 51... c2 {[%clk 0:00:12.4]} 52. Nf5
{[%clk 0:00:04.5]} 52... Ra3+ {[%clk 0:00:12.8]} 53. Kg4 {[%clk 0:00:04.6]}
53... Rc3 {[%clk 0:00:13.7]} 54. Rxg7+ {[%clk 0:00:04.2]} 54... Kf8 {[%clk
0:00:14.4]} 55. Rd7 {[%clk 0:00:01.3]} 55... c1=Q {[%clk 0:00:14]} 0-1